lending/lending_fUSD_20250131
["ID","MTS","AMOUNT","RATE_DAILY","PERIOD"]
[351041537,1738305074340,-4063.3046486,0.00019986,2]
[351041538,1738305074350,-22794.24270476,0.00019987,4]
[351041539,1738305074359,-585.25,0.00019999,2]
[351041540,1738305074368,-500.0,0.0002,3]
[351041541,1738305074378,-10000.0,0.0002,10]
[351041542,1738305074387,-60070.81843771,0.0002,2]
[351041543,1738305074396,-6164.14153912,0.0002,2]
[351041544,1738305074406,-6091.78804496,0.0002,2]
[351041545,1738305074415,-1013.0,0.0002,6]
[351041546,1738305074426,-60446.60334487,0.0002,2]
[351041547,1738305074435,-5367.94569786,0.0002,2]
[351041548,1738305074444,-1158.0,0.0002,2]
[351041549,1738305074454,-306.0,0.0002,15]
[351041550,1738305074464,-2038.0,0.0002,15]
[351041551,1738305074473,-2110.0,0.0002,2]
[351041552,1738305074482,-20000.0,0.0002,2]
[351041553,1738305074491,-22000.0,0.0002,2]
[351041554,1738305074500,-31000.0,0.0002,2]
[351041555,1738305074509,-8000.0,0.0002,2]
[351041556,1738305074519,-904.1062,0.0002,2]
[351041557,1738305074528,-2000.0,0.0002,2]
[351041558,1738305074538,-500.0,0.0002,3]
[351041559,1738305074547,-13387.39318531,0.0002,7]
[351041560,1738305074557,-1000.0,0.0002,2]
[351041561,1738305074567,-2000.0,0.0002,2]
[351041562,1738305074578,-2000.0,0.0002,2]
[351041563,1738305074588,-604.89,0.0002,14]
[351041564,1738305074597,-2000.0,0.0002,2]
[351041565,1738305074607,-2561.412487,0.0002,3]
[351041566,1738305074617,-153.54865,0.0002,3]
[351041567,1738305074631,-156.034423,0.0002,3]
[351041568,1738305074640,-1906.979987,0.0002,3]
[351041569,1738305074650,-2000.0,0.0002,2]
[351041570,1738305074659,-150.823465,0.0002,3]
[351041571,1738305074670,-8521.03,0.0002,2]
[351041572,1738305074680,-153.239463,0.0002,3]
[351041573,1738305074689,-500.0,0.0002,3]
[351041574,1738305074699,-500.0,0.0002,3]
[351041575,1738305074709,-500.0,0.0002,3]
[351041576,1738305074719,-500.0,0.0002,3]
[351041577,1738305074728,-592.6,0.0002,3]
[351041578,1738305074738,-500.0,0.0002,3]
[351041579,1738305074748,-500.0,0.0002,3]
[351041580,1738305074758,-940.25,0.0002,3]
[351041581,1738305074767,-548.89,0.0002,3]
[351041582,1738305074777,-500.0,0.0002,3]
[351041583,1738305074787,-611.59,0.0002,3]
[351041584,1738305074796,-500.0,0.0002,3]
[351041585,1738305074806,-500.0,0.0002,3]
[351041586,1738305074816,-510.11,0.0002,3]
[351041587,1738305074826,-500.0,0.0002,3]
[351041588,1738305074835,-500.0,0.0002,3]
[351041589,1738305074846,-500.0,0.0002,3]
[351041590,1738305074856,-500.0,0.0002,3]
[351041591,1738305074865,-500.0,0.0002,3]
[351041592,1738305074875,-500.0,0.0002,3]
[351041593,1738305074884,-500.0,0.0002,3]
[351041594,1738305074894,-597.83,0.0002,3]
[351041595,1738305074904,-500.0,0.0002,3]
[351041596,1738305074914,-500.0,0.0002,3]
[351041597,1738305074923,-500.0,0.0002,3]
[351041598,1738305074933,-1431.82,0.0002,5]
[351041599,1738305074942,-500.0,0.0002,3]
[351041600,1738305074951,-500.0,0.0002,3]
[351041601,1738305074961,-500.0,0.0002,3]
[351041602,1738305074970,-500.0,0.0002,3]
[351041603,1738305074980,-500.0,0.0002,3]
[351041604,1738305074990,-500.0,0.0002,3]
[351041605,1738305074999,-500.0,0.0002,3]
[351041606,1738305075010,-500.0,0.0002,3]
[351041607,1738305075019,-150.823464,0.0002,3]
[351041608,1738305075028,-892.45,0.0002,3]
[351041609,1738305075038,-500.0,0.0002,3]
[351041610,1738305075047,-500.0,0.0002,3]
[351041611,1738305075056,-500.0,0.0002,3]
[351041612,1738305075066,-500.0,0.0002,3]
[351041613,1738305075075,-621.91,0.0002,3]
[351041614,1738305075084,-500.0,0.0002,3]
[351041615,1738305075094,-500.0,0.0002,3]
[351041616,1738305075105,-945.02,0.0002,3]
[351041617,1738305075115,-500.0,0.0002,3]
[351041618,1738305075124,-644.88,0.0002,3]
[351041619,1738305075134,-839.16,0.0002,3]
[351041620,1738305075145,-643.82,0.0002,3]
[351041621,1738305075155,-500.0,0.0002,3]
[351041622,1738305075165,-500.0,0.0002,3]
[351041623,1738305075174,-534.48,0.0002,3]
[351041624,1738305075184,-500.0,0.0002,3]
[351041625,1738305075193,-500.0,0.0002,3]
[351041626,1738305075202,-500.0,0.0002,3]
[351041627,1738305075212,-624.54,0.0002,3]
[351041628,1738305075222,-500.0,0.0002,3]
[351041629,1738305075234,-2000.7275,0.0002,2]
[351041630,1738305075244,-500.0,0.0002,3]
[351041631,1738305075252,-500.0,0.0002,3]
[351041632,1738305075262,-748.93,0.0002,3]
[351041633,1738305075271,-500.0,0.0002,3]
[351041634,1738305075280,-629.81,0.0002,3]
[351041635,1738305075290,-500.0,0.0002,3]
[351041636,1738305075299,-500.0,0.0002,3]
[351041637,1738305075307,-1029.5,0.0002,3]
[351041638,1738305075316,-510.4,0.0002,3]
[351041639,1738305075327,-1069.89,0.0002,3]
[351041640,1738305075336,-500.0,0.0002,3]
[351041641,1738305075345,-1261.9,0.0002,3]
[351041642,1738305075355,-500.0,0.0002,3]
[351041643,1738305075364,-500.0,0.0002,3]
[351041644,1738305075374,-527.96,0.0002,3]
[351041645,1738305075384,-509.27,0.0002,3]
[351041646,1738305075394,-999.51,0.0002,3]
[351041647,1738305075405,-1002.1,0.0002,3]
[351041648,1738305075414,-787.81,0.0002,3]
[351041649,1738305075423,-564.05,0.0002,3]
[351041650,1738305075432,-657.22,0.0002,3]
[351041651,1738305075441,-515.851484,0.0002,3]
[351041652,1738305075451,-1484.08,0.0002,3]
[351041653,1738305075460,-657.63,0.0002,3]
[351041654,1738305075469,-698.29,0.0002,3]
[351041655,1738305075478,-637.86,0.0002,3]
[351041656,1738305075488,-500.0,0.0002,3]
[351041657,1738305075497,-500.0,0.0002,3]
[351041658,1738305075507,-813.38,0.0002,3]
[351041659,1738305075517,-500.0,0.0002,3]
[351041660,1738305075527,-669.6,0.0002,3]
[351041661,1738305075538,-500.0,0.0002,3]
[351041662,1738305075548,-577.58,0.0002,3]
[351041663,1738305075557,-636.74,0.0002,3]
[351041664,1738305075567,-621.08,0.0002,3]
[351041665,1738305075578,-619.94,0.0002,3]
[351041666,1738305075588,-500.0,0.0002,3]
[351041667,1738305075597,-1585.17,0.0002,3]
[351041668,1738305075607,-500.0,0.0002,3]
[351041669,1738305075616,-1674.68,0.0002,3]
[351041670,1738305075629,-514.86,0.0002,3]
[351041671,1738305075639,-592.24,0.0002,3]
[351041672,1738305075649,-587.16,0.0002,3]
[351041673,1738305075658,-589.61,0.0002,3]
[351041674,1738305075668,-1014.15,0.0002,3]
[351041675,1738305075679,-508.89,0.0002,3]
[351041676,1738305075689,-594.29,0.0002,3]
[351041677,1738305075699,-500.0,0.0002,3]
[351041678,1738305075711,-596.58,0.0002,3]
[351041679,1738305075721,-500.0,0.0002,3]
[351041680,1738305075731,-571.22,0.0002,3]
[351041681,1738305075740,-500.0,0.0002,3]
[351041682,1738305075750,-579.26,0.0002,3]
[351041683,1738305075759,-500.0,0.0002,3]
[351041684,1738305075768,-885.01,0.0002,3]
[351041685,1738305075777,-623.55,0.0002,3]
[351041686,1738305075787,-1002.67,0.0002,3]
[351041687,1738305075798,-500.0,0.0002,3]
[351041688,1738305075808,-1096.16,0.0002,3]
[351041689,1738305075818,-500.0,0.0002,3]
[351041690,1738305075828,-741.76,0.0002,3]
[351041691,1738305075837,-786.28,0.0002,3]
[351041692,1738305075847,-500.0,0.0002,3]
[351041693,1738305075857,-645.76,0.0002,3]
[351041694,1738305075868,-500.0,0.0002,3]
[351041695,1738305075877,-510.85,0.0002,3]
[351041696,1738305075887,-500.0,0.0002,3]
[351041697,1738305075897,-994.37,0.0002,3]
[351041698,1738305075907,-500.0,0.0002,3]
[351041699,1738305075918,-500.0,0.0002,3]
[351041700,1738305075927,-706.6,0.0002,3]
[351041701,1738305075936,-612.52,0.0002,3]
[351041702,1738305075946,-1207.91,0.0002,3]
[351041703,1738305075955,-791.36,0.0002,3]
[351041704,1738305075964,-1013.39,0.0002,3]
[351041705,1738305075974,-904.4,0.0002,3]
[351041706,1738305075983,-500.0,0.0002,3]
[351041707,1738305075992,-500.0,0.0002,3]
[351041708,1738305076002,-500.0,0.0002,3]
[351041709,1738305076011,-500.0,0.0002,3]
[351041710,1738305076020,-517.64,0.0002,3]
[351041711,1738305076030,-1289.82,0.0002,3]
[351041712,1738305076039,-611.17,0.0002,3]
[351041713,1738305076048,-948.72,0.0002,3]
[351041714,1738305076057,-500.0,0.0002,3]
[351041715,1738305076067,-634.51,0.0002,3]
[351041716,1738305076076,-1063.96,0.0002,3]
[351041717,1738305076085,-565.48,0.0002,3]
[351041718,1738305076154,-500.0,0.0002,3]
[351041719,1738305076164,-731.2,0.0002,3]
[351041720,1738305076173,-500.0,0.0002,3]
[351041721,1738305076183,-625.92,0.0002,3]
[351041722,1738305076192,-500.0,0.0002,3]
[351041723,1738305076201,-888.22,0.0002,3]
[351041724,1738305076210,-500.0,0.0002,3]
[351041725,1738305076220,-747.79,0.0002,3]
[351041726,1738305076229,-753.31,0.0002,3]
[351041727,1738305076238,-500.0,0.0002,3]
[351041728,1738305076247,-813.15,0.0002,3]
[351041729,1738305076256,-500.0,0.0002,3]
[351041730,1738305076266,-587.71,0.0002,3]
[351041731,1738305076275,-526.0,0.0002,3]
[351041732,1738305076283,-500.0,0.0002,3]
[351041733,1738305076293,-500.0,0.0002,3]
[351041734,1738305076302,-1170.95,0.0002,3]
[351041735,1738305076312,-680.12,0.0002,3]
[351041736,1738305076322,-713.89,0.0002,3]
[351041737,1738305076331,-1073.91,0.0002,3]
[351041738,1738305076340,-703.88,0.0002,3]
[351041739,1738305076349,-676.92,0.0002,3]
[351041740,1738305076359,-1486.98,0.0002,3]
[351041741,1738305076368,-1628.4,0.0002,3]
[351041742,1738305076377,-887.83,0.0002,3]
[351041743,1738305076386,-605.81,0.0002,3]
[351041744,1738305076395,-750.42,0.0002,3]
[351041745,1738305076404,-500.0,0.0002,3]
[351041746,1738305076413,-1440.62,0.0002,3]
[351041747,1738305076422,-702.9,0.0002,3]
[351041748,1738305076430,-500.0,0.0002,3]
[351041749,1738305076440,-1568.12,0.0002,3]
[351041750,1738305076449,-629.08,0.0002,3]
[351041751,1738305076458,-614.57,0.0002,3]
[351041752,1738305076467,-660.86,0.0002,3]
[351041753,1738305076476,-814.9,0.0002,3]
[351041754,1738305076485,-500.0,0.0002,3]
[351041755,1738305076494,-1203.73,0.0002,3]
[351041756,1738305076503,-500.0,0.0002,3]
[351041757,1738305076512,-1186.22,0.0002,3]
[351041758,1738305076521,-1147.47,0.0002,3]
[351041759,1738305076530,-540.01,0.0002,3]
[351041760,1738305076539,-524.52,0.0002,3]
[351041761,1738305076548,-152.46972674,0.0002,3]
[351041762,1738305076557,-500.0,0.0002,3]
[351041763,1738305076566,-500.0,0.0002,3]
[351041764,1738305076576,-881.63,0.0002,3]
[351041765,1738305076585,-967.81,0.0002,3]
[351041766,1738305076595,-534.57,0.0002,3]
[351041767,1738305076604,-500.0,0.0002,3]
[351041768,1738305076613,-500.0,0.0002,3]
[351041769,1738305076624,-500.0,0.0002,3]
[351041770,1738305076633,-1375.8,0.0002,3]
[351041771,1738305076644,-2064.31,0.0002,3]
[351041772,1738305076653,-1371.89,0.0002,3]
[351041773,1738305076662,-153.239463,0.0002,3]
[351041774,1738305076673,-693.79,0.0002,3]
[351041775,1738305076683,-567.83,0.0002,3]
[351041776,1738305076692,-1170.58,0.0002,3]
[351041777,1738305076704,-500.0,0.0002,3]
[351041778,1738305076714,-1657.08,0.0002,3]
[351041779,1738305076724,-1028.74,0.0002,3]
[351041780,1738305076733,-997.27,0.0002,3]
[351041781,1738305076745,-500.0,0.0002,3]
[351041782,1738305076754,-150.823465,0.0002,3]
[351041783,1738305076765,-709.71,0.0002,3]
[351041784,1738305076774,-500.0,0.0002,3]
[351041785,1738305076783,-622.48,0.0002,3]
[351041786,1738305076792,-1222.79,0.0002,3]
[351041787,1738305076802,-1025.99,0.0002,3]
[351041788,1738305076811,-500.0,0.0002,3]
[351041789,1738305076820,-500.0,0.0002,3]
[351041790,1738305076830,-579.62,0.0002,3]
[351041791,1738305076839,-1306.27,0.0002,3]
[351041792,1738305076849,-1132.77,0.0002,3]
[351041793,1738305076859,-515.15,0.0002,3]
[351041794,1738305076869,-567.93,0.0002,3]
[351041795,1738305076878,-1749.85,0.0002,3]
[351041796,1738305076888,-733.92,0.0002,3]
[351041797,1738305076898,-1277.79,0.0002,3]
[351041798,1738305076908,-1044.01,0.0002,2]
[351041799,1738305076917,-500.0,0.0002,3]
[351041800,1738305076926,-500.0,0.0002,3]
[351041801,1738305076936,-2092.2,0.0002,3]
[351041802,1738305076946,-6599.4,0.0002,3]
[351041803,1738305076955,-500.0,0.0002,3]
[351041804,1738305076965,-1349.63,0.0002,3]
[351041805,1738305076974,-619.48512796,0.0002,3]
[351041806,1738305076983,-623.6,0.0002,3]
[351041807,1738305076992,-500.0,0.0002,3]
[351041808,1738305077001,-1162.34,0.0002,3]
[351041809,1738305077011,-500.0,0.0002,3]
[351041810,1738305077021,-704.49,0.0002,3]
[351041811,1738305077031,-2843.11,0.0002,3]
[351041812,1738305077040,-500.0,0.0002,3]
[351041813,1738305077050,-500.0,0.0002,3]
[351041814,1738305077060,-1467.74,0.0002,3]
[351041815,1738305077069,-500.0,0.0002,3]
[351041816,1738305077079,-500.0,0.0002,3]
[351041817,1738305077089,-2381.94,0.0002,3]
[351041818,1738305077098,-500.0,0.0002,3]
[351041819,1738305077108,-1324.74,0.0002,3]
[351041820,1738305077118,-1349.56,0.0002,3]
[351041821,1738305077128,-500.0,0.0002,3]
[351041822,1738305077138,-2091.67,0.0002,3]
[351041823,1738305077148,-1017.43,0.0002,3]
[351041824,1738305077158,-1259.58,0.0002,3]
[351041825,1738305077167,-500.0,0.0002,3]
[351041826,1738305077177,-3116.59,0.0002,3]
[351041827,1738305077187,-159.0,0.0002,2]
[351041828,1738305077197,-1719.88,0.0002,3]
[351041829,1738305077206,-2234.71,0.0002,3]
[351041830,1738305077215,-666.18,0.0002,3]
[351041831,1738305077224,-740.76,0.0002,3]
[351041832,1738305077234,-906.12,0.0002,3]
[351041833,1738305077243,-4876.27,0.0002,3]
[351041834,1738305077252,-1298.89,0.0002,3]
[351041835,1738305077262,-819.25,0.0002,3]
[351041836,1738305077272,-173.43616844,0.0002,3]
[351041837,1738305077285,-695.87,0.0002,3]
[351041838,1738305077295,-500.0,0.0002,3]
[351041839,1738305077304,-1699.86,0.0002,3]
[351041840,1738305077314,-2758.75,0.0002,3]
[351041841,1738305077324,-500.0,0.0002,3]
[351041842,1738305077334,-3201.18,0.0002,3]
[351041843,1738305077344,-500.0,0.0002,3]
[351041844,1738305077353,-3315.06,0.0002,3]
[351041845,1738305077362,-738.95,0.0002,3]
[351041846,1738305077371,-842.74,0.0002,3]
[351041847,1738305077381,-500.0,0.0002,3]
[351041848,1738305077391,-2477.82,0.0002,3]
[351041849,1738305077402,-1149.21,0.0002,3]
[351041850,1738305077412,-6509.57,0.0002,3]
[351041851,1738305077421,-771.98,0.0002,3]
[351041852,1738305077431,-1331.02,0.0002,3]
[351041853,1738305077441,-500.0,0.0002,3]
[351041854,1738305077451,-1406.67,0.0002,3]
[351041855,1738305077461,-16710.32,0.0002,3]
[351041856,1738305077470,-1691.16,0.0002,3]
[351041857,1738305077479,-500.0,0.0002,3]
[351041858,1738305077488,-1770.42,0.0002,3]
[351041859,1738305077498,-500.0,0.0002,3]
[351041860,1738305077509,-4722.33,0.0002,2]
[351041861,1738305077518,-1059.79,0.0002,3]
[351041862,1738305077526,-1589.13,0.0002,3]
[351041863,1738305077535,-684.17,0.0002,3]
[351041864,1738305077545,-1904.76,0.0002,3]
[351041865,1738305077555,-500.0,0.0002,3]
[351041866,1738305077564,-2243.64,0.0002,3]
[351041867,1738305077573,-1607.08,0.0002,3]
[351041868,1738305077583,-500.0,0.0002,3]
[351041869,1738305077593,-500.0,0.0002,3]
[351041870,1738305077603,-8728.29,0.0002,3]
[351041871,1738305077612,-916.1,0.0002,3]
[351041872,1738305077624,-2460.64,0.0002,3]
[351041873,1738305077636,-1056.49,0.0002,3]
[351041874,1738305077646,-1532.03,0.0002,3]
[351041875,1738305077656,-9116.32,0.0002,3]
[351041876,1738305077667,-4841.93,0.0002,3]
[351041877,1738305077676,-2051.41,0.0002,3]
[351041878,1738305077686,-3924.2,0.0002,3]
[351041879,1738305077696,-5218.86,0.0002,3]
[351041880,1738305077706,-1447.74,0.0002,3]
[351041881,1738305077717,-1383.2,0.0002,3]
[351041882,1738305077726,-591.16,0.0002,3]
[351041883,1738305077737,-625.0,0.0002,3]
[351041884,1738305077747,-3735.73,0.0002,3]
[351041885,1738305077757,-3624.11,0.0002,3]
[351041886,1738305077767,-2417.21,0.0002,3]
[351041887,1738305077777,-2287.83,0.0002,3]
[351041888,1738305077787,-1686.1,0.0002,3]
[351041889,1738305077797,-762.72,0.0002,3]
[351041890,1738305077807,-5194.55,0.0002,3]
[351041891,1738305077819,-502.65,0.0002,3]
[351041892,1738305077828,-500.0,0.0002,3]
[351041893,1738305077838,-1053.48,0.0002,3]
[351041894,1738305077848,-1780.0,0.0002,3]
[351041895,1738305077858,-1463.48,0.0002,3]
[351041896,1738305077868,-4635.87,0.0002,3]
[351041897,1738305077880,-9953.84,0.0002,3]
[351041898,1738305077891,-509.26,0.0002,3]
[351041899,1738305077901,-5346.59,0.0002,3]
[351041900,1738305077910,-2428.73,0.0002,3]
[351041901,1738305077920,-2702.64,0.0002,3]
[351041902,1738305077933,-2686.86,0.0002,3]
[351041903,1738305077944,-1018.98,0.0002,3]
[351041904,1738305077954,-911.08,0.0002,3]
[351041905,1738305077965,-841.09,0.0002,3]
[351041906,1738305077975,-1934.18,0.0002,3]
[351041907,1738305077984,-3270.62,0.0002,3]
[351041908,1738305077995,-9393.9,0.0002,3]
[351041909,1738305078004,-3812.71,0.0002,3]
[351041910,1738305078014,-1562.13,0.0002,3]
[351041911,1738305078024,-898.06,0.0002,3]
[351041912,1738305078034,-3520.86,0.0002,3]
[351041913,1738305078044,-685.72,0.0002,3]
[351041914,1738305078054,-3882.4,0.0002,3]
[351041915,1738305078065,-8126.78,0.0002,3]
[351041916,1738305078075,-500.0,0.0002,3]
[351041917,1738305078086,-1656.89,0.0002,3]
[351041918,1738305078096,-2893.08,0.0002,3]
[351041919,1738305078106,-1770.12,0.0002,3]
[351041920,1738305078116,-6696.12,0.0002,3]
[351041921,1738305078126,-311.25424539,0.0002,3]
[351041922,1738305078136,-239785.34121239,0.0002,2]
[351041923,1738305078149,-8324.65,0.0002,3]
[351041924,1738305078159,-2584.33,0.0002,3]
[351041925,1738305078169,-227.91156031,0.0002,3]
[351041926,1738305078179,-6857.56,0.0002,3]
[351041927,1738305078189,-4353.28,0.0002,3]
[351041928,1738305078199,-748.5,0.0002,3]
[351041929,1738305078210,-500.0,0.0002,3]
[351041930,1738305078220,-500.0,0.0002,3]
[351041931,1738305078231,-8823.7,0.0002,3]
[351041932,1738305078241,-554.54,0.0002,3]
[351041933,1738305078250,-892.21,0.0002,3]
[351041934,1738305078260,-1643.4,0.0002,3]
[351041935,1738305078270,-2547.58,0.0002,3]
[351041936,1738305078280,-500.0,0.0002,3]
[351041937,1738305078290,-3407.2,0.0002,3]
[351041938,1738305078300,-2444.23,0.0002,3]
[351041939,1738305078311,-500.0,0.0002,3]
[351041940,1738305078321,-2068.07,0.0002,3]
[351041941,1738305078331,-500.0,0.0002,3]
[351041942,1738305078341,-870.32,0.0002,3]
[351041943,1738305078351,-1787.06,0.0002,3]
[351041944,1738305078361,-538.79,0.0002,3]
[351041945,1738305078371,-646.98,0.0002,3]
[351041946,1738305078381,-904.46,0.0002,2]
[351041947,1738305078391,-4275.8,0.0002,3]
[351041948,1738305078401,-1152.43,0.0002,3]
[351041949,1738305078411,-673.35,0.0002,2]
[351041950,1738305078422,-1000.0,0.0002,2]
[351041951,1738305078432,-683.31,0.0002,3]
[351041952,1738305078443,-4182.25,0.0002,3]
[351041953,1738305078453,-2459.19,0.0002,3]
[351041954,1738305078464,-10947.16,0.0002,3]
[351041955,1738305078474,-935.69,0.0002,3]
[351041956,1738305078484,-1432.03,0.0002,3]
[351041957,1738305078494,-2829.34,0.0002,3]
[351041958,1738305078505,-1345.96,0.0002,3]
[351041959,1738305078514,-3565.35,0.0002,3]
[351041960,1738305078525,-3543.44,0.0002,3]
[351041961,1738305078535,-2298.22,0.0002,3]
[351041962,1738305078544,-500.0,0.0002,3]
[351041963,1738305078555,-500.0,0.0002,3]
[351041964,1738305078565,-500.0,0.0002,3]
[351041965,1738305078576,-1291.99,0.0002,3]
[351041966,1738305078586,-500.0,0.0002,3]
[351041967,1738305078596,-1278.48,0.0002,3]
[351041968,1738305078607,-950.79,0.0002,3]
[351041969,1738305078618,-1386.34,0.0002,3]
[351041970,1738305078631,-3756.07,0.0002,3]
[351041971,1738305078641,-1884.67,0.0002,3]
[351041972,1738305078651,-500.0,0.0002,3]
[351041973,1738305078663,-1555.45,0.0002,3]
[351041974,1738305078673,-500.0,0.0002,3]
[351041975,1738305078684,-4405.08,0.0002,3]
[351041976,1738305078695,-1376.94,0.0002,3]
[351041977,1738305078706,-1197.53,0.0002,3]
[351041978,1738305078716,-1263.64,0.0002,3]
[351041979,1738305078726,-500.0,0.0002,3]
[351041980,1738305078736,-2409.26,0.0002,3]
[351041981,1738305078746,-150.0,0.00020009,4]
[351041982,1738305078756,-2000.0,0.0002001,2]
[351041983,1738305078767,-3821.591475,0.0002002,2]
[351041984,1738305078776,-500.0,0.00020027,3]
[351041985,1738305078787,-159.29712803,0.00020036,2]
[351041986,1738305078797,-150.0,0.00020036,4]
[351041987,1738305078807,-150.52,0.0002005,2]
[351041988,1738305078817,-500.0,0.00020055,3]
[351041989,1738305078828,-500.0,0.00020059,2]
[351041990,1738305078838,-212.0,0.0002007,2]
[351041991,1738305078848,-205.0,0.0002007,2]
[351041992,1738305078859,-210.0,0.00020071,2]
[351041993,1738305078869,-210.0,0.00020071,2]
[351041994,1738305078881,-210.0,0.00020071,2]
[351041995,1738305078892,-207.0,0.00020071,2]
[351041996,1738305078902,-207.0,0.00020071,2]
[351041997,1738305078913,-207.0,0.00020071,2]
[351041998,1738305078924,-205.0,0.00020071,2]
[351041999,1738305078935,-205.0,0.00020071,2]
[351042000,1738305078946,-205.0,0.00020071,2]
[351042001,1738305078957,-205.0,0.00020071,2]
[351042002,1738305078967,-150.0,0.00020078,4]
[351042003,1738305078978,-500.0,0.00020082,3]
[351042004,1738305078987,-161.730746,0.00020084,2]
[351042005,1738305078997,-150.0,0.00020101,4]
[351042006,1738305079007,-500.0,0.0002011,3]
[351042007,1738305079018,-208.3632214,0.00020122,2]
[351042008,1738305079028,-758.4772192,0.00020122,2]
[351042009,1738305079039,-269.6821527,0.00020122,2]
[351042010,1738305079049,-522.2706847,0.00020122,2]
[351042011,1738305079059,-4094.6311219,0.00020122,2]
[351042012,1738305079070,-150.0,0.00020134,4]
[351042013,1738305079081,-2489.18957131,0.00020136,2]
[351042014,1738305079091,-604.89,0.00020136,14]
[351042015,1738305079101,-2561.412487,0.00020136,3]
[351042016,1738305079111,-1906.979987,0.00020136,3]
[351042017,1738305079121,-150.823465,0.00020136,3]
[351042018,1738305079131,-500.0,0.00020136,3]
[351042019,1738305079140,-500.0,0.00020136,3]
[351042020,1738305079150,-500.0,0.00020136,3]
[351042021,1738305079160,-500.0,0.00020136,3]
[351042022,1738305079171,-592.6,0.00020136,3]
[351042023,1738305079182,-500.0,0.00020136,3]
[351042024,1738305079192,-500.0,0.00020136,3]
[351042025,1738305079202,-940.25,0.00020136,3]
[351042026,1738305079212,-548.89,0.00020136,3]
[351042027,1738305079228,-500.0,0.00020136,3]
[351042028,1738305079239,-611.59,0.00020136,3]
[351042029,1738305079249,-500.0,0.00020136,3]
[351042030,1738305079259,-500.0,0.00020136,3]
[351042031,1738305079269,-510.11,0.00020136,3]
[351042032,1738305079279,-500.0,0.00020136,3]
[351042033,1738305079289,-500.0,0.00020136,3]
[351042034,1738305079299,-500.0,0.00020136,3]
[351042035,1738305079309,-500.0,0.00020136,3]
[351042036,1738305079319,-500.0,0.00020136,3]